fUST/lending_fUST_20251214
["ID","MTS","AMOUNT","RATE_DAILY","PERIOD"]
[398471789,1765705988841,150.0,9.439e-05,2]
[398471790,1765705989319,150.0,9.868e-05,2]
[398471791,1765705989726,150.0,0.00010297,2]
[398471792,1765705990124,150.0,0.00010726,2]
[398471793,1765705990546,150.0,0.00011155,2]
[398471794,1765705991489,122.00653566,0.00011584,2]
[398471795,1765705991520,44.63346434,0.00011584,2]
[398471796,1765705991896,190.45,0.00012014,2]
[398471797,1765705992308,214.25,0.00012443,2]
[398471798,1765705992748,238.06,0.00012872,2]
[398471799,1765706056805,150.0,9.023e-05,2]
[398471800,1765706057402,150.0,9.453e-05,2]
[398471801,1765706057839,150.0,9.883e-05,2]
[398471802,1765706058256,150.0,0.00010312,2]
[398471803,1765706058712,150.0,0.00010742,2]
[398471804,1765706059141,150.0,0.00011172,2]
[398471805,1765706059826,150.0,0.00011601,2]
[398471820,1765706405410,946.76633968,0.00014205,2]
[398471822,1765706737655,201.478581,0.00013699,2]
[398471849,1765707031632,-201.94711698,0.00017811,2]
[398471850,1765707031642,-264.1810141,0.00017811,2]
[398471902,1765707037684,-418.8189859,0.00017811,2]
[398471903,1765707037696,-173.44234293,0.00017897,2]
[398471904,1765707037707,-216.85764328,0.00017982,2]
[398471905,1765707037718,-3241.50574526,0.00017983,2]
[398471906,1765707037730,-2001.676815,0.00018012,2]
[398471907,1765707037739,-300.0,0.00018081,2]
[398471908,1765707037749,-1163.0,0.00018081,2]
[398471909,1765707037759,-316.77582985,0.00018081,2]
[398471910,1765707037769,-266.97912025,0.00018081,2]
[398471911,1765707037779,-1200.0,0.00018082,2]
[398471912,1765707037789,-33146.010338,0.00018087,2]
[398471913,1765707037799,-300.0,0.00018448,2]
[398471914,1765707037809,-300.0,0.00018448,2]
[398471915,1765707037819,-300.0,0.00018448,2]
[398471916,1765707037828,-300.0,0.00018448,2]
[398471917,1765707037838,-300.0,0.00018448,2]
[398471918,1765707037848,-300.0,0.00018448,2]
[398471919,1765707037858,-300.0,0.00018448,2]
[398471920,1765707037868,-300.0,0.00018448,2]
[398471921,1765707037878,-300.0,0.00018448,2]
[398471922,1765707037888,-300.0,0.00018448,2]
[398471923,1765707037898,-300.0,0.00018448,2]
[398471924,1765707037908,-300.0,0.00018448,2]
[398471925,1765707037918,-300.0,0.00018448,2]
[398471926,1765707037928,-300.0,0.00018448,2]
[398471927,1765707037937,-300.0,0.00018448,2]
[398471928,1765707037950,-600.0,0.00018816,10]
[398471929,1765707037960,-500.0,0.00018862,2]
[398471930,1765707037971,-199.55494547,0.0001899,2]
[398471931,1765707037980,-500.0,0.00018999,2]
[398471932,1765707037992,-163.99652779,0.00019,2]
[398471933,1765707038253,-179.09111278,0.00019,2]
[398471934,1765707038284,-500.0,0.00019136,2]
[398471935,1765707038295,-500.0,0.00019136,2]
[398471936,1765707038304,-160482.52421179,0.00019139,2]
[398471937,1765707038317,-1923.64296067,0.00019139,2]
[398471938,1765707038345,-2543.33468453,0.00019139,2]
[398471946,1765707042880,-4565.866311,0.00019139,2]
[398471947,1765707042892,-274.51751388,0.00019139,2]
[398471948,1765707042903,-625.78505773,0.00019139,2]
[398471975,1765707045962,-527.86177434,0.00019139,2]
[398471976,1765707045974,-383.53,0.00019139,2]
[398471977,1765707045998,-355.3,0.00019139,2]
[398471978,1765707062115,153.32,0.000134,2]
[398471979,1765707062443,153.32,0.000135,2]
[398471980,1765707063462,153.32,0.000137,2]
[398471981,1765707063730,153.32,0.000138,2]
[398471982,1765707064064,153.32,0.000139,2]
[398471983,1765707064346,153.32,0.00014,2]
[398471984,1765707083508,150.0,9.738e-05,2]
[398471985,1765707083880,150.0,0.00010202,2]
[398471986,1765707084693,150.0,0.00010666,2]
[398471987,1765707084782,160.94,0.0001113,2]
[398471988,1765707085108,201.17,0.00011593,2]
[398471989,1765707085562,241.41,0.00012057,2]
[398471990,1765707086018,281.64,0.00012521,2]
[398471991,1765707086388,321.88,0.00012984,2]
[398471992,1765707086824,362.11,0.00013448,2]
[398471993,1765707087531,402.35,0.00013912,2]
[398471994,1765707090710,197.31125114,8.47e-05,2]
[398471995,1765707122048,153.32,0.000134,2]
[398471996,1765707122333,153.32,0.000135,2]
[398471997,1765707122640,153.32,0.000135,2]
[398471998,1765707122916,153.32,0.000136,2]
[398471999,1765707123201,153.32,0.000136,2]
[398472000,1765707123563,153.32,0.000137,2]
[398472001,1765707123872,153.32,0.000137,2]
[398472002,1765707124152,153.32,0.000138,2]
[398472003,1765707124451,153.32,0.000138,2]
[398472004,1765707124728,153.32,0.000139,2]
[398472005,1765707125015,153.32,0.000139,2]
[398472006,1765707125313,153.32,0.00014,2]
[398472007,1765707125629,153.32,0.00014,2]
[398472008,1765707130697,6266.0,0.00016,2]
[398472009,1765707155904,150.0,9.741e-05,2]
[398472010,1765707156313,150.0,0.00010204,2]
[398472011,1765707156707,180.52,0.00010668,2]
[398472012,1765707157113,240.69,0.00011132,2]
[398472013,1765707157510,300.86,0.00011596,2]
[398472014,1765707157906,361.03,0.0001206,2]
[398472015,1765707158402,357.75,0.00012524,2]
[398472016,1765707158431,63.46,0.00012524,2]
[398472017,1765707158891,481.38,0.00012987,2]
[398472018,1765707159158,541.55,0.00013451,2]
[398472019,1765707159579,601.72,0.00013915,2]
[398472020,1765707202189,197.70587364,0.00014304,2]
[398472021,1765707230710,150.0,9.027e-05,2]
[398472022,1765707231154,150.0,9.457e-05,2]
[398472023,1765707231588,150.0,9.887e-05,2]
[398472024,1765707231995,150.0,0.00010316,2]
[398472025,1765707232444,150.0,0.00010746,2]
[398472026,1765707233213,150.0,0.00011176,2]
[398472027,1765707233282,150.0,0.00011606,2]
[398472028,1765707233740,150.0,0.00012036,2]
[398472029,1765707253015,2471.0,0.00016,2]
[398472030,1765707363649,1263.0,0.00016,2]
[398472046,1765708221879,659.85,0.00016,10]
[398472096,1765708231910,-300.0,0.00017293,2]
[398472099,1765708231919,-300.0,0.00017293,2]
[398472101,1765708231927,-300.0,0.00017293,2]
[398472103,1765708231936,-300.0,0.00017293,2]
[398472105,1765708231945,-300.0,0.00017293,2]
[398472106,1765708231954,-1200.0,0.00017293,2]
[398472107,1765708231963,-321.15420615,0.00017294,2]
[398472108,1765708231972,-578.07757107,0.00017294,2]
[398472109,1765708231980,-1006.76822278,0.00017294,2]
[398472110,1765708231991,-20.92523691,0.00017294,2]
[398472111,1765708232000,-829.07476309,0.00017294,2]
[398472175,1765708241566,-775.09049664,0.00017294,2]
[398472176,1765708241576,-176.51349607,0.00017568,2]
[398472177,1765708241585,-500.0,0.00017929,2]
[398472178,1765708241597,-500.0,0.00017929,2]
[398472179,1765708241609,-500.0,0.00017929,2]
[398472180,1765708241618,-500.0,0.00017929,2]
[398472181,1765708241628,-500.0,0.00017929,2]
[398472182,1765708241638,-500.0,0.00017929,2]
[398472183,1765708241648,-500.0,0.00017929,2]
[398472184,1765708241658,-500.0,0.00017929,2]
[398472185,1765708241667,-500.0,0.00017929,2]
[398472186,1765708241677,-500.0,0.00017929,2]
[398472187,1765708241687,-500.0,0.00017929,2]
[398472188,1765708241697,-525.91632064,0.00017929,2]
[398472189,1765708241706,-500.0,0.00017929,2]
[398472190,1765708241716,-500.0,0.00017929,2]
[398472191,1765708241726,-500.0,0.00017929,2]
[398472192,1765708241735,-500.0,0.00017929,2]
[398472193,1765708241746,-500.0,0.00017929,2]
[398472194,1765708241758,-500.0,0.00017929,2]
[398472195,1765708241769,-500.0,0.00017929,2]
[398472196,1765708241779,-534.29264207,0.00017929,2]
[398472197,1765708241788,-500.0,0.00017929,2]
[398472198,1765708241798,-500.0,0.00017929,2]
[398472199,1765708241808,-500.0,0.00017929,2]
[398472200,1765708241818,-500.0,0.00017929,2]
[398472201,1765708241827,-500.0,0.00017929,2]
[398472202,1765708241837,-500.0,0.00017929,2]
[398472203,1765708241847,-344.97803456,0.00017929,2]
[398472204,1765708241859,-500.0,0.00017929,2]
[398472205,1765708241871,-500.0,0.00017929,2]
[398472206,1765708241880,-500.0,0.00017929,2]
[398472207,1765708241890,-500.0,0.00017929,2]
[398472208,1765708241901,-500.0,0.00017929,2]
[398472209,1765708241910,-500.0,0.00017929,2]
[398472210,1765708241920,-385.52863603,0.00017929,2]
[398472211,1765708241931,-550.0,0.00017929,2]
[398472212,1765708241941,-500.0,0.00017929,2]
[398472213,1765708241951,-500.0,0.00017929,2]
[398472214,1765708241960,-500.0,0.00017929,2]
[398472215,1765708241970,-500.0,0.00017929,2]
[398472216,1765708241980,-500.0,0.00017929,2]
[398472217,1765708241990,-500.0,0.00017929,2]
[398472218,1765708241999,-500.0,0.00017929,2]
[398472219,1765708242010,-528.6213383,0.00017929,2]
[398472220,1765708242019,-500.0,0.00017929,2]
[398472221,1765708242029,-500.0,0.00017929,2]
[398472222,1765708242039,-500.0,0.00017929,2]
[398472223,1765708242049,-500.0,0.00017929,2]
[398472224,1765708242059,-500.0,0.00017929,2]
[398472225,1765708242069,-500.0,0.00017929,2]
[398472226,1765708242079,-500.0,0.00017929,2]
[398472227,1765708242089,-500.0,0.00017929,2]
[398472228,1765708242099,-500.0,0.00017929,2]
[398472229,1765708242108,-500.0,0.00017929,2]
[398472230,1765708242118,-500.0,0.00017929,2]
[398472231,1765708242128,-500.0,0.00017929,2]
[398472232,1765708242137,-500.0,0.00017929,2]
[398472233,1765708242147,-500.0,0.00017929,2]
[398472234,1765708242156,-500.0,0.00017929,2]
[398472235,1765708242167,-500.0,0.00017929,2]
[398472236,1765708242176,-500.0,0.00017929,2]
[398472237,1765708242186,-500.0,0.00017929,2]
[398472238,1765708242196,-500.0,0.00017929,2]
[398472239,1765708242206,-500.0,0.00017929,2]
[398472240,1765708242216,-500.0,0.00017929,2]
[398472241,1765708242227,-500.0,0.00017929,2]
[398472242,1765708242237,-500.0,0.00017929,2]
[398472243,1765708242247,-547.49531965,0.00017929,2]
[398472244,1765708242257,-500.0,0.00017929,2]
[398472245,1765708242267,-500.0,0.00017929,2]
[398472246,1765708242277,-500.0,0.00017929,2]
[398472247,1765708242287,-500.0,0.00017929,2]
[398472248,1765708242297,-500.0,0.00017929,2]
[398472249,1765708242309,-500.0,0.00017929,2]
[398472250,1765708242319,-500.0,0.00017929,2]
[398472251,1765708242328,-500.0,0.00017929,2]
[398472252,1765708242338,-500.0,0.00017929,2]
[398472253,1765708242348,-500.0,0.00017929,2]
[398472255,1765708242358,-2836.31752712,0.0001793,2]
[398472257,1765708242367,-216.85764328,0.00017931,2]
[398472258,1765708242378,-320.73112592,0.00018028,2]
[398472259,1765708242388,-279.50414879,0.00018028,2]
[398472260,1765708242399,-1200.0,0.00018029,2]
[398472262,1765708242409,-272.167,0.00018032,2]
[398472269,1765708242420,-1071.44271731,0.00018034,2]
[398472284,1765708243093,-2506.27076889,0.00018034,2]
[398472286,1765708243103,-500.0,0.00018076,2]
[398472287,1765708243112,-500.0,0.00018076,2]
[398472288,1765708243121,-500.0,0.00018076,2]
[398472289,1765708243131,-500.0,0.00018076,2]
[398472290,1765708243141,-500.0,0.00018076,2]
[398472291,1765708243150,-500.0,0.00018076,2]
[398472292,1765708243161,-517.58517983,0.00018204,2]
[398472293,1765708243170,-931.65332369,0.00018204,2]
[398472294,1765708243181,-1656.27257545,0.00018204,2]
[398472295,1765708243190,-2585.33797325,0.00018204,2]
[398472296,1765708243199,-208.176897,0.00018359,2]
[398472297,1765708243209,-300.0,0.00018441,2]
[398472298,1765708243218,-300.0,0.00018441,2]
[398472299,1765708243227,-300.0,0.00018441,2]
[398472300,1765708243237,-300.0,0.00018441,2]
[398472301,1765708243248,-300.0,0.00018441,2]
[398472302,1765708243258,-300.0,0.00018441,2]
[398472303,1765708243268,-300.0,0.00018441,2]
[398472304,1765708243278,-300.0,0.00018441,2]
[398472305,1765708243288,-300.0,0.00018441,2]
[398472306,1765708243297,-300.0,0.00018441,2]
[398472307,1765708243307,-300.0,0.00018441,2]
[398472308,1765708243316,-300.0,0.00018441,2]
[398472309,1765708243326,-300.0,0.00018441,2]
[398472310,1765708243336,-300.0,0.00018441,2]
[398472311,1765708243345,-300.0,0.00018441,2]
[398472312,1765708243355,-986.28161687,0.00018687,2]
[398472313,1765708243364,-500.0,0.00018862,2]
[398472314,1765708243373,-420.0,0.00018882,2]
[398472315,1765708243384,-173.0,0.00018882,2]
[398472316,1765708243393,-420.0,0.00018882,2]
[398472317,1765708243403,-420.0,0.00018882,2]
[398472318,1765708243412,-555.0,0.0001896,2]
[398472319,1765708243422,-20000.0,0.0001896,2]
[398472320,1765708243431,-1059.01056487,0.0001896,2]
[398472321,1765708243442,-2674.60743027,0.0001896,2]
[398472322,1765708243451,-1680.0,0.00018975,2]
[398472323,1765708243461,-500.0,0.00018999,2]
[398472324,1765708243470,-200.0,0.00019,2]
[398472325,1765708243479,-4005.1392797,0.00019004,2]
[398472326,1765708243488,-8517.70691529,0.00019004,2]
[398472327,1765708243500,-500.16552,0.00019004,2]
[398472338,1765708252633,659.84,0.00016,2]
[398472339,1765708256803,150.0,9.029e-05,2]
[398472340,1765708257221,150.0,9.459e-05,2]
[398472341,1765708257632,150.0,9.889e-05,2]
[398472342,1765708258035,170.45,0.00010319,2]
[398472343,1765708258670,213.07,0.00010749,2]
[398472344,1765708259092,255.68,0.00011178,2]
[398472345,1765708259536,298.29,0.00011608,2]
[398472346,1765708259935,340.91,0.00012038,2]
[398472347,1765708260374,132.10412636,0.00012468,2]
[398472348,1765708260403,251.41587364,0.00012468,2]
[398472349,1765708260794,426.13,0.00012898,2]
[398472350,1765708263644,153.33,0.000134,2]
[398472351,1765708263690,153.33,0.000135,2]
[398472352,1765708263893,153.33,0.000137,2]
[398472353,1765708264493,153.33,0.000138,2]
[398472354,1765708264542,153.33,0.000139,2]
[398472355,1765708264738,153.33,0.00014,2]
[398472357,1765708329755,150.0,0.00010344,2]
[398472358,1765708330198,150.0,0.00010836,2]
[398472359,1765708330589,150.0,0.00011329,2]
[398472360,1765708330993,150.0,0.00011821,2]
[398472361,1765708331411,150.0,0.00012314,2]
[398472362,1765708331524,1536.0,0.00016,2]
[398472363,1765708331876,150.0,0.00012806,2]
[398472364,1765708332297,159.02,0.00013299,2]
[398472365,1765708332710,181.74,0.00013791,2]
[398472366,1765708333190,204.45,0.00014284,2]
[398472367,1765708333590,227.17,0.00014776,2]
[398472374,1765708398035,150.0,0.00010332,2]
[398472375,1765708451423,2331.0,0.00016,2]
[398472376,1765708462425,150.0,0.00010327,2]
[398472377,1765708462826,150.0,0.00010819,2]
[398472378,1765708571013,2399.0,0.00016,2]
[398472379,1765708679653,14.10412636,9.99e-05,2]
[398472380,1765708679674,189.28587364,9.99e-05,2]
[398472381,1765708679935,203.39,9.99e-05,2]
[398472382,1765708680221,203.39,9.99e-05,2]
[398472383,1765708690659,2471.0,0.00016,2]
[398472385,1765708804069,1263.0,0.00016,2]
[398472392,1765709285091,4532.5,0.00016,10]
[398472420,1765709432359,-283.32353234,0.00017072,2]
[398472421,1765709432385,-16.67646766,0.00017072,2]
[398472422,1765709432394,-300.0,0.00017072,2]
[398472423,1765709432403,-300.0,0.00017072,2]
[398472424,1765709432413,-1200.0,0.00017072,2]
[398472425,1765709432422,-371.34726854,0.00017073,2]
[398472426,1765709432431,-590.50719146,0.00017073,2]
[398472427,1765709432443,-77.91789191,0.00017073,2]
[398472428,1765709432452,-1188.31125932,0.00017073,2]
[398472429,1765709432461,-1854.87960634,0.00017073,2]
[398472430,1765709432473,-173.64679131,0.00017111,2]
[398472431,1765709432482,-2481.77783623,0.00017821,2]
[398472432,1765709432491,-183.60322615,0.0001785,2]
[398472433,1765709432500,-195.65290415,0.00017919,2]
[398472434,1765709432509,-224.51178815,0.00017919,2]
[398472435,1765709432518,-1200.0,0.0001792,2]
[398472436,1765709432527,-500.0,0.0001792,2]
[398472437,1765709432536,-500.0,0.0001792,2]
[398472438,1765709432545,-500.0,0.0001792,2]
[398472439,1765709432554,-500.0,0.0001792,2]
[398472440,1765709432562,-500.0,0.0001792,2]
[398472441,1765709432571,-500.0,0.0001792,2]
[398472442,1765709432582,-500.0,0.0001792,2]
[398472443,1765709432591,-500.0,0.0001792,2]
[398472444,1765709432600,-500.0,0.0001792,2]
[398472445,1765709432611,-500.0,0.0001792,2]
[398472446,1765709432620,-500.0,0.0001792,2]
[398472447,1765709432629,-500.0,0.0001792,2]
[398472448,1765709432639,-500.0,0.0001792,2]
[398472449,1765709432648,-500.0,0.0001792,2]
[398472450,1765709432658,-500.0,0.0001792,2]
[398472451,1765709432667,-500.0,0.0001792,2]
[398472452,1765709432676,-500.0,0.0001792,2]
[398472453,1765709432684,-500.0,0.0001792,2]
[398472454,1765709432693,-500.0,0.0001792,2]
[398472455,1765709432701,-500.0,0.0001792,2]
[398472456,1765709432710,-500.0,0.0001792,2]
[398472457,1765709432719,-500.0,0.0001792,2]
[398472458,1765709432729,-500.0,0.0001792,2]
[398472459,1765709432737,-500.0,0.0001792,2]
[398472460,1765709432746,-500.0,0.0001792,2]
[398472461,1765709432754,-500.0,0.0001792,2]
[398472462,1765709432763,-500.0,0.0001792,2]
[398472463,1765709432772,-500.0,0.0001792,2]
[398472464,1765709432781,-500.0,0.0001792,2]
[398472465,1765709432790,-500.0,0.0001792,2]
[398472466,1765709432799,-500.0,0.0001792,2]
[398472467,1765709432809,-500.0,0.0001792,2]
[398472468,1765709432818,-500.0,0.0001792,2]
[398472469,1765709432827,-500.0,0.0001792,2]
[398472470,1765709432837,-500.0,0.0001792,2]
[398472471,1765709432846,-500.0,0.0001792,2]
[398472472,1765709432855,-521.90220775,0.0001792,2]
[398472473,1765709432864,-521.90220775,0.0001792,2]
[398472474,1765709432873,-521.90220775,0.0001792,2]
[398472475,1765709432882,-521.90220775,0.0001792,2]
[398472476,1765709432891,-334.60129816,0.0001792,2]
[398472477,1765709438242,-217.97675473,0.00017971,2]
[398472478,1765709438252,-249.11629112,0.00017971,2]
[398472479,1765709438261,-388.85496067,0.00017971,2]
[398472480,1765709438270,-500.0,0.00018028,2]
[398472481,1765709438279,-500.0,0.00018028,2]
[398472482,1765709438288,-500.0,0.00018028,2]
[398472483,1765709438298,-434.25055376,0.00018028,2]
[398472484,1765709438308,-300.0,0.00018287,2]
[398472485,1765709438318,-300.0,0.00018287,2]
[398472486,1765709438327,-300.0,0.00018287,2]
[398472487,1765709438336,-300.0,0.00018287,2]
[398472488,1765709438349,-300.0,0.00018287,2]
[398472489,1765709438358,-300.0,0.00018287,2]
[398472490,1765709438368,-300.0,0.00018287,2]
[398472491,1765709438377,-300.0,0.00018287,2]
[398472492,1765709438389,-300.0,0.00018287,2]
[398472493,1765709438398,-300.0,0.00018287,2]
[398472494,1765709438408,-300.0,0.00018287,2]
[398472495,1765709438417,-300.0,0.00018287,2]
[398472496,1765709438427,-300.0,0.00018287,2]
[398472497,1765709438436,-300.0,0.00018287,2]
[398472498,1765709438446,-300.0,0.00018287,2]
[398472499,1765709438455,-20000.0,0.00018533,2]
[398472500,1765709438464,-2674.60743027,0.00018533,2]
[398472501,1765709438473,-169.0,0.00018645,2]
[398472502,1765709438483,-420.0,0.00018645,2]
[398472503,1765709438492,-167.0,0.00018645,2]
[398472504,1765709438501,-1137.5645906,0.00018688,2]
[398472505,1765709438510,-1093.071512,0.00018688,2]
[398472506,1765709438520,-1680.0,0.00018737,2]
[398472507,1765709438529,-3935.94506004,0.00018795,2]
[398472508,1765709438540,-150.0,0.00018862,2]
[398472509,1765709438550,-150.0,0.00018862,2]
[398472510,1765709438559,-151.61213776,0.00018862,2]
[398472511,1765709438568,-151.19909229,0.00018862,2]
[398472512,1765709438577,-155.96798742,0.00018862,2]
[398472513,1765709438586,-152.9083085,0.00018862,2]
[398472514,1765709438595,-153.38236539,0.00018862,2]
[398472515,1765709438605,-151.0,0.00018862,2]
[398472516,1765709438614,-248.68783909,0.00018862,2]
[398472517,1765709438623,-151.0,0.00018862,2]
[398472518,1765709438632,-157.32998072,0.00018862,2]
[398472519,1765709438641,-293.15151234,0.00018862,2]
[398472520,1765709438651,-106701.73944556,0.00018976,2]
[398472550,1765709442117,-9793.46548997,0.00018976,2]
[398472570,1765709446037,-277.312261,0.00018976,2]
[398472571,1765709446090,-13923.21701366,0.00018976,2]
[398472572,1765709446101,-1560.0,0.00018976,2]
[398472573,1765709488711,150.0,8.973e-05,2]
[398472574,1765709489148,150.0,9.4e-05,2]
[398472575,1765709489559,175.68,9.827e-05,2]
[398472576,1765709489974,234.23,0.00010255,2]
[398472577,1765709490400,292.79,0.00010682,2]
[398472578,1765709490795,134.74412636,0.00011109,2]
[398472579,1765709490818,216.60587364,0.00011109,2]
[398472580,1765709491207,409.91,0.00011536,2]
[398472581,1765709491614,468.47,0.00011964,2]
[398472582,1765709492032,527.03,0.00012391,2]
[398472583,1765709492466,585.59,0.00012818,2]
[398472586,1765709549011,191.404651,0.00013699,2]
[398472587,1765709563961,150.0,0.00010298,2]
[398472588,1765709564299,150.0,0.00010788,2]
[398472589,1765709564705,150.0,0.00011278,2]
[398472590,1765709565103,150.0,0.00011769,2]
[398472591,1765709565628,150.0,0.00012259,2]
[398472592,1765709566056,150.0,0.00012749,2]
[398472593,1765709566484,150.0,0.0001324,2]
[398472594,1765709566905,150.0,0.0001373,2]
[398472595,1765709771806,1536.0,0.00016,2]
[398472605,1765709892411,2331.0,0.00016,2]
[398472606,1765709943350,1084.05575744,0.00013821,2]
[398472607,1765709943390,500.0,0.00013273,2]
[398472611,1765710017989,949.94371792,0.00016,2]
[398472612,1765710018011,1449.05628208,0.00016,2]
[398472615,1765710130998,2471.0,0.00016,2]
[398472616,1765710243420,1263.0,0.00016,2]
[398472620,1765710483228,213.56,9.99e-05,2]
[398472621,1765710483570,213.56,9.99e-05,2]
[398472662,1765710632280,-165.3588376,0.00016823,2]
[398472663,1765710632291,-190.55116163,0.0001686,2]
[398472664,1765710632300,-220.27287195,0.00016972,2]
[398472665,1765710632309,-300.0,0.00017642,2]
[398472666,1765710632318,-300.0,0.00017642,2]
[398472667,1765710632327,-300.0,0.00017642,2]
[398472668,1765710632336,-1200.0,0.00017642,2]
[398472669,1765710632346,-1200.0,0.00017643,2]
[398472670,1765710632355,-240.33194163,0.00017643,2]
[398472671,1765710632364,-201.79016813,0.00017643,2]
[398472673,1765710632373,-500.0,0.00017643,2]
[398472674,1765710632382,-500.0,0.00017643,2]
[398472676,1765710632391,-1147.26701987,0.00017643,2]
[398472678,1765710632400,-500.0,0.00017643,2]
[398472680,1765710632409,-600.58665632,0.00017643,2]
[398472682,1765710632418,-340.19344989,0.00017643,2]
[398472684,1765710632427,-1147.26701987,0.00017643,2]
[398472686,1765710632435,-500.0,0.00017643,2]
[398472688,1765710632444,-428.90891572,0.00017643,2]
[398472690,1765710632453,-500.0,0.00017643,2]
[398472692,1765710632462,-1147.26701987,0.00017643,2]
[398472694,1765710632471,-500.0,0.00017643,2]
[398472696,1765710632480,-1147.26701987,0.00017643,2]
[398472698,1765710632489,-504.79947871,0.00017643,2]
[398472700,1765710632498,-500.0,0.00017643,2]
[398472702,1765710632508,-500.0,0.00017643,2]
[398472704,1765710632518,-1147.26701987,0.00017643,2]
[398472706,1765710632529,-500.0,0.00017643,2]
[398472708,1765710632538,-500.0,0.00017643,2]
[398472709,1765710632547,-1147.26701987,0.00017643,2]
[398472710,1765710632557,-500.0,0.00017643,2]
[398472711,1765710632567,-1147.26701987,0.00017643,2]
[398472712,1765710632577,-500.0,0.00017643,2]
[398472713,1765710632587,-1147.26701987,0.00017643,2]
[398472714,1765710632596,-500.0,0.00017643,2]
[398472715,1765710632605,-1147.26701987,0.00017643,2]
[398472716,1765710632615,-500.0,0.00017643,2]
[398472717,1765710632624,-1147.26701987,0.00017643,2]
[398472718,1765710632633,-1147.26701987,0.00017643,2]
[398472719,1765710632642,-500.0,0.00017643,2]
[398472721,1765710632651,-1147.26701987,0.00017643,2]
[398472723,1765710632661,-500.0,0.00017643,2]
[398472725,1765710632670,-500.0,0.00017643,2]
[398472727,1765710632679,-1147.26701987,0.00017643,2]
[398472729,1765710632688,-1147.26701987,0.00017643,2]
[398472731,1765710632698,-500.0,0.00017643,2]
[398472733,1765710632707,-1147.26701987,0.00017643,2]
[398472734,1765710632721,-500.0,0.00017643,2]
[398472736,1765710632731,-1147.26701987,0.00017643,2]
[398472738,1765710632739,-500.0,0.00017643,2]
[398472740,1765710632748,-1147.26701987,0.00017643,2]
[398472742,1765710632757,-1147.26701987,0.00017643,2]
[398472744,1765710632767,-500.0,0.00017643,2]
[398472746,1765710632778,-1147.26701987,0.00017643,2]
[398472747,1765710632788,-500.0,0.00017643,2]
[398472748,1765710632797,-1147.26701987,0.00017643,2]
[398472749,1765710632806,-500.0,0.00017643,2]
[398472750,1765710632818,-1147.26701987,0.00017643,2]
[398472751,1765710632827,-1147.26701987,0.00017643,2]
[398472752,1765710632836,-500.0,0.00017643,2]
[398472753,1765710632847,-1147.26701987,0.00017643,2]
[398472754,1765710632856,-500.0,0.00017643,2]
[398472755,1765710632866,-1147.26701987,0.00017643,2]
[398472756,1765710632875,-1147.26701987,0.00017643,2]
[398472757,1765710632884,-1147.26701986,0.00017643,2]
[398472758,1765710632894,-500.0,0.00017643,2]